bitfinex/quotes_SOLUSD_20250819
["timestamp","ask_amount","ask_price","bid_price","bid_amount"]
[1755572185887,3.68612575,182.78,182.77,11.41431304]
[1755572186088,3.68612575,182.78,182.77,12.09431304]
[1755572186791,3.68612575,182.78,182.77,6.18135744]
[1755572187399,3.68612575,182.78,182.77,0.71]
[1755572189117,3.68612575,182.78,182.77,6.18135744]
[1755572189300,3.68612575,182.78,182.77,12.09431304]
[1755572190089,3.68612575,182.78,182.77,0.71]
[1755572192225,3.68612575,182.78,182.77,6.18135744]
[1755572192603,3.68612575,182.78,182.77,0.71]
[1755572194200,3.68612575,182.78,182.77,0.03]
[1755572194417,7.77775278,182.78,182.77,0.03]
[1755572194614,3.68612575,182.78,182.77,0.03]
[1755572195222,3.68612575,182.78,182.77,0.71]
[1755572197194,3.68612575,182.78,182.77,12.09431304]
[1755572198119,3.68612575,182.78,182.77,0.03]
[1755572198328,3.67835212,182.78,182.77,0.03]
[1755572198629,7.76590846,182.78,182.77,0.03]
[1755572198835,8.48590846,182.78,182.77,0.03]
[1755572199030,58.70992216,182.78,182.77,0.03]
[1755572199208,73.81614804,182.78,182.77,0.03]
[1755572201311,78.41408819,182.78,182.77,0.03]
[1755572204015,78.41408819,182.78,182.71,5.28309996]
[1755572204016,147.80621557,182.77,182.71,5.28309996]
[1755572204303,5.9129556,182.75,182.71,5.28309996]
[1755572204502,179.28591877,182.76,182.67,5.9129556]
[1755572204503,5.9129556,182.72,182.67,5.9129556]
[1755572204711,5.9129556,182.7,182.65,5.912956]
[1755572204920,39.54,182.71,182.65,5.912956]
[1755572205117,5.9129556,182.7,182.65,5.9129556]
[1755572205625,5.9129556,182.7,182.65,11.38762377]
[1755572205805,6.6329556,182.7,182.65,5.47466817]
[1755572206132,5.9129556,182.69,182.65,6.05466817]
[1755572207131,5.9129556,182.68,182.65,0.58]
[1755572207334,5.9129556,182.68,182.64,5.47520057]
[1755572207556,5.9129556,182.67,182.63,17.037745]
[1755572207833,5.9129556,182.66,182.62,5.47562052]
[1755572208041,5.9129556,182.64,182.61,0.03]
[1755572208422,6.6329556,182.64,182.61,0.03]
[1755572208737,5.9129556,182.63,182.61,0.03]
[1755572209122,6.6329556,182.64,182.61,0.03]
[1755572209532,44.7529556,182.65,182.63,0.03]
[1755572209923,45.4729556,182.65,182.63,0.03]
[1755572210329,44.7529556,182.65,182.63,0.03]
[1755572210550,45.4729556,182.65,182.63,0.03]
[1755572211134,5.9129556,182.64,182.63,0.03]
[1755572212437,6.6329556,182.64,182.63,0.03]
[1755572212631,0.72,182.67,182.63,0.03]
[1755572212826,38.84,182.65,182.63,0.03]
[1755572216850,39.56,182.65,182.63,0.03]
[1755572218138,38.84,182.65,182.63,0.03]
[1755572218335,21.01917117,182.68,182.63,6.5229556]
[1755572218551,171.54,182.67,182.63,6.5229556]
[1755572218755,172.26,182.67,182.63,5.9429556]
[1755572218935,178.1729556,182.67,182.63,0.03]
[1755572219336,6.6329556,182.66,182.63,0.03]
[1755572219848,6.6329556,182.65,182.63,0.03]
[1755572220339,44.7529556,182.65,182.63,0.03]
[1755572220542,0.72,182.64,182.63,0.03]
[1755572220766,44.7529556,182.65,182.63,0.03]
[1755572220944,39.56,182.65,182.63,0.03]
[1755572222255,0.72,182.64,182.63,0.03]
[1755572222866,38.84,182.65,182.63,0.03]
[1755572223532,39.56,182.65,182.63,0.03]
[1755572223732,0.72,182.64,182.63,0.03]
[1755572224339,6.6329556,182.64,182.63,0.03]
[1755572224739,21.73917117,182.64,182.63,0.03]
[1755572226336,27.21442303,182.64,182.63,0.03]
[1755572227033,30.85685042,182.64,182.63,0.03]
[1755572228265,19.43864296,182.64,182.63,0.03]
[1755572228567,30.82685042,182.64,182.63,0.03]
[1755572229270,27.18442303,182.64,182.63,0.03]
[1755572229835,30.82058969,182.64,182.63,0.03]
[1755572230060,24.90763409,182.64,182.63,0.03]
[1755572230265,27.18442303,182.64,182.63,0.03]
[1755572230768,21.70917117,182.64,182.63,0.03]
[1755572230974,60.54917117,182.64,182.63,0.03]
[1755572231345,66.02442303,182.64,182.63,0.03]
[1755572231559,60.54917117,182.64,182.63,0.03]
[1755572232674,15.10621557,182.65,182.63,0.03]
[1755572232857,38.84,182.64,182.63,0.03]
[1755572233385,45.4429556,182.64,182.63,0.03]
[1755572234550,38.84,182.64,182.63,0.03]
[1755572236569,15.10621557,182.68,182.63,11.99850726]
[1755572236775,38.82,182.67,182.63,11.99850726]
[1755572236957,38.82,182.67,182.64,0.58]
[1755572237273,38.82,182.67,182.64,6.4929556]
[1755572237441,15.10621557,182.68,182.65,0.58]
[1755572237641,38.82,182.67,182.65,0.58]
[1755572237872,38.82,182.67,182.64,5.9129556]
[1755572238260,38.82,182.67,182.65,5.47495209]
[1755572240784,38.82,182.67,182.64,5.9129556]
[1755572240785,0.69,182.66,182.64,5.4751986]
[1755572240947,0.69,182.65,182.63,0.03]
[1755572241151,5.9129556,182.64,182.63,0.03]
[1755572241569,6.6029556,182.64,182.63,0.03]
[1755572241753,25.3519238,182.64,182.63,0.03]
[1755572241957,55.39937713,182.64,182.63,0.03]
[1755572242268,15.10621557,182.61,182.56,5.23759264]
[1755572242466,5.9129556,182.59,182.56,5.23759264]
[1755572242677,5.9129556,182.59,182.55,5.47795124]
[1755572242874,5.9129556,182.59,182.55,6.05795124]
[1755572243063,38.82,182.6,182.55,6.05795124]
[1755572243064,38.82,182.6,182.56,6.4929556]
[1755572243268,38.82,182.6,182.57,0.58]
[1755572243460,38.82,182.6,182.56,5.9129556]
[1755572243768,38.82,182.6,182.57,6.4929556]
[1755572244881,38.82,182.6,182.58,5.47705115]
[1755572246081,171.52,182.6,182.57,5.47735115]
[1755572246582,171.52,182.6,182.54,5.9129556]
[1755572246583,0.69,182.59,182.54,5.9129556]
[1755572247083,0.69,182.59,182.54,6.4929556]
[1755572247488,177.4329556,182.6,182.55,5.47795124]
[1755572247681,0.69,182.59,182.55,5.47795124]
[1755572247986,0.69,182.59,182.55,11.39090684]
[1755572248186,4.34669143,182.59,182.55,11.39090684]
[1755572248356,3.65669143,182.59,182.55,11.97090684]
[1755572249286,171.52,182.6,182.55,11.97090684]
[1755572249474,3.65792834,182.59,182.55,11.97090684]
[1755572249670,171.52,182.6,182.55,11.39090684]
[1755572249988,171.52,182.6,182.57,5.9129556]
[1755572250285,3.66002653,182.59,182.57,5.9129556]
[1755572250473,172.21,182.6,182.57,5.9129556]
[1755572250662,4.35017093,182.59,182.55,5.47795124]
[1755572250866,43.1694689,182.58,182.53,11.39128672]
[1755572251079,4.35129663,182.57,182.53,11.39128672]
[1755572251271,0.69,182.57,182.53,11.39128672]
[1755572251486,0.69,182.57,182.53,5.47833112]
[1755572251667,0.69,182.57,182.53,11.39128672]
[1755572252279,0.69,182.56,182.53,11.39128672]
[1755572253790,0.69,182.56,182.53,5.47833112]
[1755572253996,0.69,182.56,182.53,11.39128672]
[1755572254486,136.36244009,182.57,182.53,11.39128672]
[1755572254693,0.69,182.56,182.53,11.39128672]
[1755572256380,0.69,182.56,182.53,5.47833112]
[1755572257885,132.7,182.57,182.53,11.39128672]
[1755572258081,133.4,182.57,182.53,11.39128672]
[1755572259397,132.7,182.57,182.53,11.39128672]
[1755572259693,5.9129556,182.54,182.51,5.47886395]
[1755572259874,0.7,182.53,182.51,5.47886395]
[1755572260812,0.7,182.53,182.5,5.47945205]
[1755572260981,44.7329556,182.55,182.5,5.47945205]
[1755572261291,0.7,182.54,182.5,5.47945205]
[1755572261498,0.7,182.53,182.5,5.47945205]
[1755572262581,5.9129556,182.54,182.5,5.47945205]
[1755572262783,0.7,182.54,182.5,5.47945205]
[1755572263884,0.7,182.53,182.5,5.47945205]
[1755572264394,44.7329556,182.55,182.5,5.47945205]
[1755572264595,0.7,182.52,182.5,5.47945205]
[1755572264777,0.7,182.54,182.5,5.47945205]
[1755572264984,0.7,182.53,182.5,5.47945205]
[1755572265504,6.6129556,182.53,182.5,5.47945205]
[1755572265683,0.7,182.53,182.5,5.47945205]
[1755572266082,0.7,182.53,182.49,5.50975231]
[1755572266304,38.82,182.55,182.5,0.58]
[1755572266482,5.9129556,182.54,182.5,0.58]
[1755572266990,6.6129556,182.54,182.5,0.58]
[1755572267382,44.7329556,182.55,182.51,5.47915182]
[1755572267586,45.4329556,182.55,182.51,5.47915182]
[1755572268316,44.7329556,182.55,182.51,5.47915182]
[1755572268504,0.7,182.54,182.51,5.47915182]
[1755572268905,0.7,182.53,182.51,5.47915182]
[1755572269508,0.7,182.53,182.5,5.47943748]
[1755572269710,0.7,182.52,182.49,0.03]
[1755572270097,0.7,182.51,182.49,0.03]
[1755572270411,0.7,182.51,182.49,5.50968157]
[1755572270996,45.4329556,182.53,182.49,5.50968157]
[1755572271316,5.9129556,182.5,182.49,0.03]
[1755572271992,6.6129556,182.5,182.49,0.03]
[1755572273710,0.7,182.5,182.49,0.03]
[1755572273912,6.6129556,182.5,182.49,0.03]
[1755572274297,0.7,182.5,182.49,0.03]
[1755572274499,38.82,182.51,182.49,0.03]
[1755572275014,132.7,182.5,182.49,0.03]
[1755572275794,171.52,182.5,182.49,0.03]
[1755572278196,193.23917117,182.5,182.49,0.03]
[1755572278517,60.53917117,182.5,182.49,0.03]
[1755572279218,66.01862322,182.5,182.49,0.03]
[1755572279808,69.657375,182.5,182.49,0.03]
[1755572281702,95.657375,182.5,182.49,0.03]
[1755572282021,41.10621557,182.48,182.47,0.03]
[1755572282322,89.47792295,182.48,182.47,0.03]
[1755572282495,90.17792295,182.48,182.47,0.03]
[1755572282696,90.17792295,182.48,182.35,39.70944727]
[1755572282697,15.10621557,182.44,182.34,6.5229556]
[1755572282897,5.9129556,182.39,182.34,6.5229556]
[1755572283198,38.82,182.39,182.35,6.5229556]
[1755572283544,45.4329556,182.39,182.34,11.39721577]
[1755572283719,6.6129556,182.38,182.33,12.00746078]
[1755572284095,6.6129556,182.38,182.33,6.09450518]
[1755572284294,6.6129556,182.38,182.34,0.61]
[1755572284737,38.82,182.37,182.34,0.61]
[1755572285155,38.82,182.37,182.33,5.48450518]
[1755572285355,5.9129556,182.35,182.31,0.61]
[1755572285515,45.4329556,182.35,182.3,5.48546352]
[1755572285715,0.7,182.34,182.3,5.48546352]
[1755572286041,38.82,182.35,182.31,5.9129556]
[1755572286242,38.82,182.35,182.31,6.5229556]
[1755572286421,39.52,182.35,182.31,5.9129556]
[1755572286622,45.4329556,182.35,182.3,11.39841912]
[1755572287148,44.7329556,182.35,182.3,5.48546352]
[1755572287446,5.9129556,182.33,182.27,6.09636637]
[1755572287661,38.82,182.33,182.3,5.9129556]
[1755572287820,38.82,182.35,182.32,5.9129556]
[1755572288128,38.82,182.35,182.32,0.61]
[1755572288331,39.48,182.35,182.31,5.9129556]
[1755572289216,39.48,182.35,182.31,6.5229556]
[1755572289447,38.82,182.35,182.31,6.5229556]
[1755572289648,38.82,182.35,182.32,5.48486178]
[1755572290035,38.82,182.35,182.33,5.9129556]
[1755572290426,38.82,182.35,182.32,12.00781738]
[1755572290614,0.66,182.39,182.34,5.9129556]
[1755572290818,5.9129556,182.45,182.38,5.9129556]
[1755572291028,0.66,182.44,182.41,5.9129556]
[1755572291231,38.82,182.47,182.43,5.9129556]
[1755572291432,39.48,182.47,182.44,5.9129556]
[1755572291634,38.82,182.47,182.45,11.39390928]
[1755572291839,38.82,182.47,182.44,11.39414467]
[1755572292031,38.82,182.49,182.44,5.48118907]
[1755572292237,5.9129556,182.46,182.4,5.48245614]
[1755572292426,5.9129556,182.44,182.4,5.48245614]
[1755572292630,0.66,182.43,182.4,5.48245614]
[1755572292850,15.10621557,182.47,182.38,5.48305735]
[1755572292851,5.9129556,182.41,182.38,5.48305735]
[1755572293159,6.5729556,182.4,182.38,5.48305735]
[1755572293452,6.5729556,182.39,182.36,5.48365869]
[1755572293622,0.66,182.38,182.34,11.39721577]
[1755572294557,0.66,182.38,182.34,14.87729079]
[1755572294720,48.21303062,182.39,182.34,14.87729079]
[1755572294924,38.82,182.39,182.37,9.39303062]
[1755572295251,38.82,182.39,182.37,10.00303062]
[1755572295453,38.82,182.39,182.37,9.39303062]
[1755572295641,38.82,182.39,182.35,0.61]
[1755572295830,38.82,182.39,182.36,9.39303062]
[1755572296161,0.66,182.38,182.35,9.39303062]
[1755572296527,0.66,182.37,182.34,5.48426017]
[1755572296736,39.48,182.39,182.35,9.39303062]
[1755572296935,38.82,182.39,182.37,14.87638862]
[1755572297328,38.82,182.39,182.37,5.483358]
[1755572297548,38.82,182.39,182.37,14.87638862]
[1755572298439,38.82,182.39,182.37,5.483358]
[1755572298754,0.66,182.38,182.35,5.48368172]
[1755572298946,0.66,182.37,182.34,5.48426017]
[1755572299527,133.36,182.43,182.36,9.39303062]
[1755572299847,133.36,182.43,182.38,9.39303062]
[1755572299848,0.66,182.42,182.38,9.39303062]
[1755572300044,0.66,182.41,182.37,9.39303062]
[1755572300251,0.66,182.4,182.37,9.39303062]
[1755572301040,0.66,182.39,182.38,5.48305735]
[1755572301248,0.66,182.39,182.36,5.48337479]
[1755572301471,9.39303062,182.4,182.36,5.48337479]
[1755572301632,0.66,182.38,182.36,5.48337479]
[1755572302053,0.66,182.38,182.34,5.48400855]
[1755572302261,10.05303062,182.37,182.32,0.03]
[1755572302458,10.05303062,182.36,182.32,0.03]
[1755572302762,0.66,182.36,182.32,0.03]
[1755572303057,0.66,182.36,182.34,5.48426017]
[1755572303464,9.39303062,182.37,182.33,5.48448195]
[1755572303766,0.66,182.35,182.33,5.48448195]
[1755572303964,9.39303062,182.36,182.32,5.51482357]
[1755572304272,0.66,182.34,182.32,5.51482357]
[1755572304653,0.66,182.33,182.32,0.03]
[1755572304843,48.99303062,182.35,182.32,0.03]
[1755572305041,0.66,182.33,182.32,0.03]
[1755572307578,25.15924619,182.33,182.32,0.03]
[1755572308063,147.80621557,182.32,182.23,5.48757065]
[1755572308364,172.32,182.31,182.24,9.39303062]
[1755572308549,54.08621557,182.3,182.27,5.48636637]
[1755572308751,187.44621557,182.3,182.27,5.48636637]
[1755572308954,0.66,182.29,182.27,5.48636637]
[1755572309481,39.66,182.29,182.27,5.48636637]
[1755572310668,0.66,182.29,182.26,14.87969801]
[1755572310896,39.66,182.29,182.26,14.87969801]
[1755572311649,39.66,182.29,182.26,5.48666739]
[1755572312044,39.0,182.29,182.26,5.48666739]
[1755572312371,39.66,182.29,182.26,5.48666739]
[1755572313361,39.66,182.29,182.24,5.48726953]
[1755572313667,39.66,182.29,182.25,9.39303062]
[1755572314065,39.0,182.29,182.25,9.39303062]
[1755572314267,0.66,182.28,182.25,9.39303062]
[1755572315069,39.0,182.29,182.25,9.39303062]
[1755572315283,39.66,182.29,182.25,9.39303062]
[1755572315777,39.66,182.29,182.26,9.39303062]
[1755572316344,39.66,182.29,182.21,0.03]
[1755572316345,39.0,182.29,182.27,5.96682473]
[1755572317194,132.7,182.3,182.28,5.96682473]
[1755572317363,132.7,182.3,182.27,0.64]
[1755572317689,132.7,182.3,182.29,11.45258917]
[1755572317895,38.96,182.31,182.29,11.45258917]
[1755572318046,132.7,182.34,182.3,5.96682473]
[1755572318252,38.96,182.34,182.33,5.96682473]
[1755572318554,38.96,182.36,182.33,5.96682473]
[1755572318758,38.96,182.36,182.35,5.96682473]
[1755572319249,0.72,182.38,182.35,5.96682473]
[1755572319250,38.96,182.38,182.35,5.96682473]
[1755572319451,38.96,182.38,182.37,5.96682473]
[1755572319974,38.96,182.38,182.37,5.483358]
[1755572320472,39.68,182.38,182.36,11.45040065]
[1755572320777,38.96,182.38,182.36,11.45040065]
[1755572320961,38.96,182.38,182.37,5.96682473]
[1755572321151,38.96,182.4,182.37,5.96682473]
[1755572321357,38.96,182.4,182.38,5.96682473]
[1755572321575,38.96,182.4,182.37,5.96682473]
[1755572321878,5.96682473,182.38,182.33,5.48456096]
[1755572322067,39.68,182.37,182.33,11.45138569]
[1755572322273,39.68,182.37,182.34,5.96682473]
[1755572322984,0.72,182.36,182.33,5.48456096]
[1755572323354,38.96,182.37,182.34,5.96682473]
[1755572323555,39.68,182.37,182.34,5.96682473]
[1755572323967,0.06,182.39,182.36,5.96682473]
[1755572324165,39.06,182.39,182.38,5.96682473]
[1755572324479,0.06,182.39,182.38,5.96682473]
[1755572324853,0.06,182.39,182.35,19.19385795]
[1755572325083,0.06,182.39,182.38,5.96682473]
[1755572326185,0.78,182.39,182.36,5.96682473]
[1755572326374,6.74682473,182.39,182.35,5.48395941]
[1755572326558,5.96682473,182.37,182.3,5.48546352]
[1755572326757,0.72,182.36,182.31,5.96682473]
[1755572326972,0.72,182.35,182.32,5.96682473]
[1755572327174,0.72,182.36,182.32,5.96682473]
[1755572327977,0.72,182.36,182.33,5.48456096]
[1755572328885,0.72,182.36,182.33,11.45138569]
[1755572329471,0.72,182.36,182.33,5.48456096]
[1755572329654,0.72,182.36,182.33,11.45138569]
[1755572329859,45.68682473,182.38,182.33,11.45138569]
[1755572330060,0.72,182.37,182.33,11.45138569]
[1755572330264,0.72,182.37,182.34,9.39421507]
[1755572330554,9.45421507,182.39,182.36,9.39421507]
[1755572330555,0.06,182.39,182.36,9.39421507]
[1755572330809,0.06,182.39,182.33,31.48456096]
[1755572330810,0.06,182.39,182.38,9.39421507]
[1755572331864,0.78,182.39,182.38,9.39421507]
[1755572332090,0.78,182.39,182.37,9.39421507]
[1755572332261,0.06,182.39,182.36,9.39421507]
[1755572332461,39.04,182.39,182.36,9.39421507]
[1755572332662,39.76,182.39,182.36,9.39421507]
[1755572333095,39.76,182.39,182.32,42.483064]
[1755572333096,39.04,182.39,182.38,9.39421507]
[1755572333270,0.06,182.39,182.38,9.39421507]
[1755572334666,0.06,182.39,182.37,9.39421507]
[1755572334975,0.06,182.39,182.38,9.39421507]
[1755572335478,0.06,182.43,182.38,36.03421507]
[1755572335677,0.06,182.43,182.42,9.39421507]
[1755572336676,0.06,182.43,182.42,14.87607012]
[1755572337995,0.06,182.43,182.42,9.39421507]
[1755572338168,0.06,182.43,182.42,14.87607012]
[1755572338372,0.06,182.43,182.42,15.51607012]
[1755572339771,0.06,182.43,182.42,14.87607012]
[1755572340314,0.06,182.43,182.42,15.51607012]
[1755572340467,0.06,182.46,182.45,9.39421507]
[1755572340991,0.06,182.46,182.45,15.51516875]
[1755572341367,0.06,182.5,182.45,29.21755296]
[1755572341567,0.06,182.5,182.49,9.39421507]
[1755572342511,0.06,182.5,182.49,10.03421507]
[1755572342974,0.06,182.5,182.49,15.51396738]
[1755572344479,1e-08,182.5,182.49,15.51396738]
[1755572345904,1e-08,182.5,182.49,41.51396738]
[1755572346393,1e-08,182.5,182.49,80.49396738]
[1755572346895,1e-08,182.5,182.49,79.85396738]
[1755572347494,1e-08,182.5,182.49,40.87396738]
[1755572347793,1e-08,182.5,182.49,14.87396738]
[1755572348894,0.67000001,182.5,182.49,9.39421507]
[1755572349587,0.67000001,182.5,182.47,14.87454199]
[1755572350004,0.67,182.49,182.47,14.87454199]
[1755572350215,0.67,182.49,182.48,9.39421507]
[1755572350669,1e-08,182.5,182.47,9.39421507]
[1755572350869,1e-08,182.5,182.46,9.39421507]
[1755572351069,1e-08,182.5,182.47,9.39421507]
[1755572351280,0.67,182.49,182.47,9.39421507]
[1755572352068,0.67,182.48,182.47,9.39421507]
[1755572352275,0.67,182.48,182.45,14.87510526]
[1755572352474,0.67,182.47,182.45,14.87510526]
[1755572352676,0.67,182.46,182.44,9.39421507]
[1755572352893,9.39421507,182.49,182.44,9.39421507]
[1755572352894,0.67,182.45,182.44,14.87540839]
[1755572353082,0.67,182.45,182.44,9.39421507]
[1755572353498,0.67,182.45,182.43,5.4814759]
[1755572353695,0.67,182.44,182.43,9.39421507]
[1755572353902,0.67,182.44,182.42,14.87602013]
[1755572354091,0.67,182.44,182.43,9.39421507]
[1755572354275,0.67,182.43,182.42,14.87602013]
[1755572354480,0.67,182.43,182.41,0.03]
[1755572354481,0.67,182.43,182.41,14.90629404]
[1755572354802,0.67,182.43,182.42,9.39421507]
[1755572355186,0.67,182.43,182.41,5.51207897]
[1755572356400,0.67,182.42,182.41,0.03]
[1755572357179,10.06421507,182.42,182.41,0.03]
[1755572359205,49.04421507,182.42,182.41,0.03]
[1755572360231,0.67,182.42,182.41,0.03]
[1755572360397,49.04421507,182.44,182.41,0.03]
[1755572360721,9.39421507,182.43,182.41,0.03]
[1755572360918,10.06421507,182.43,182.41,0.03]
[1755572361116,9.39421507,182.43,182.41,0.03]
[1755572361315,10.06421507,182.42,182.41,0.03]
[1755572362110,9.39421507,182.43,182.41,0.03]
[1755572362506,10.06421507,182.43,182.41,0.03]
[1755572362709,132.7,182.45,182.42,9.39421507]
[1755572362918,132.7,182.45,182.43,5.48155456]
[1755572364026,133.37,182.45,182.43,5.48155456]
[1755572364205,132.7,182.45,182.43,5.48155456]
[1755572365137,132.7,182.45,182.42,5.48185505]
[1755572365507,142.09421507,182.45,182.42,5.48185505]
[1755572366733,142.09421507,182.45,182.41,5.51215558]
[1755572367133,142.76421507,182.45,182.41,5.51215558]
[1755572367624,142.76421507,182.45,182.41,0.03]
[1755572367625,142.09421507,182.45,182.41,0.03]
[1755572367823,10.06421507,182.44,182.41,0.03]
[1755572368224,9.39421507,182.44,182.41,0.03]
[1755572368426,0.67,182.43,182.41,0.03]
[1755572369506,5.95727364,182.44,182.41,0.03]
[1755572369722,6.62727364,182.44,182.41,0.03]
[1755572370602,0.67,182.44,182.41,0.03]
[1755572370802,6.62727364,182.44,182.41,0.03]
[1755572370997,0.67,182.44,182.41,0.03]
[1755572371229,0.67,182.43,182.41,0.03]
[1755572372532,5.95727364,182.44,182.41,0.03]
[1755572373106,6.62727364,182.44,182.41,0.03]
[1755572373811,0.67,182.43,182.41,0.03]
[1755572374025,5.95727364,182.42,182.41,0.03]
[1755572374511,6.62727364,182.42,182.41,0.03]
[1755572381511,12.10912869,182.42,182.41,0.03]
[1755572381723,30.86524077,182.42,182.41,0.03]
[1755572383318,25.38338572,182.42,182.41,0.03]
[1755572383530,64.24338572,182.42,182.41,0.03]
[1755572383710,21.73348921,182.42,182.41,0.03]
[1755572383917,60.59348921,182.42,182.41,0.03]
[1755572384437,45.48727364,182.42,182.41,0.03]
[1755572384925,44.81727364,182.42,182.41,0.03]
[1755572385638,45.49727364,182.42,182.41,0.03]
[1755572386852,6.63727364,182.45,182.41,0.03]
[1755572387055,38.86,182.44,182.41,0.03]
[1755572387351,138.65727364,182.46,182.42,0.64]
[1755572387643,177.51727364,182.46,182.41,6.62727364]
[1755572388028,171.56,182.46,182.42,6.59727364]
[1755572388342,171.56,182.46,182.43,0.64]
[1755572388545,132.7,182.46,182.43,5.48155456]
[1755572388745,132.7,182.46,182.43,11.4388282]
[1755572389043,5.95727364,182.47,182.43,5.48155456]
[1755572389246,5.95727364,182.44,182.41,0.03]
[1755572389546,44.81727364,182.44,182.41,0.03]
[1755572390045,45.49727364,182.44,182.41,0.03]
[1755572390245,5.95727364,182.42,182.41,0.03]
[1755572390622,5.95727364,182.43,182.41,0.03]
[1755572391047,6.63727364,182.43,182.41,0.03]
[1755572391839,44.81727364,182.44,182.41,0.03]
[1755572392341,48.24701941,182.44,182.41,0.03]
[1755572392845,10.12701941,182.48,182.43,9.38701941]
[1755572393047,38.88,182.47,182.42,10.02701941]
[1755572393352,0.68,182.46,182.42,10.02701941]
[1755572393650,0.68,182.46,182.43,5.48155456]
[1755572394019,38.88,182.47,182.43,5.48155456]
[1755572394221,38.88,182.47,182.44,9.38701941]
[1755572394747,0.06,182.48,182.44,10.02701941]
[1755572394923,3.72137708,182.48,182.44,10.02701941]
[1755572395433,3.72287293,182.48,182.44,10.02701941]
[1755572396344,3.72287293,182.48,182.45,5.48095368]
[1755572397143,0.06,182.48,182.45,5.48095368]
[1755572397835,0.74,182.48,182.45,5.48095368]
[1755572398348,0.06,182.48,182.41,13.73492111]
[1755572398549,0.06,182.48,182.45,9.38701941]
[1755572398853,0.06,182.48,182.44,9.38701941]
[1755572399234,0.06,182.48,182.44,10.02701941]
[1755572399437,10.12701941,182.48,182.43,9.38701941]
[1755572399823,10.12701941,182.48,182.43,10.02701941]
[1755572400251,0.74,182.48,182.44,5.48125411]
[1755572400458,0.06,182.48,182.46,9.38701941]
[1755572400750,0.06,182.48,182.47,10.02701941]
[1755572401466,0.06,182.48,182.47,26.0]
[1755572402246,0.06,182.48,182.44,28.57140879]
[1755572402445,0.06,182.48,182.45,0.64]
[1755572402951,0.74,182.48,182.44,19.18438938]
[1755572403143,0.06,182.48,182.45,10.02701941]
[1755572403548,0.06,182.48,182.44,28.57140879]
[1755572403747,9.38701941,182.45,182.43,5.48149197]
[1755572403940,10.06701941,182.44,182.42,5.48179789]
[1755572404142,10.06701941,182.43,182.42,5.48179789]
[1755572404344,9.38701941,182.44,182.41,0.03]
[1755572404730,10.06701941,182.42,182.41,0.03]
[1755572405233,0.68,182.42,182.41,0.03]
[1755572405431,10.06701941,182.42,182.41,0.03]
[1755572406643,9.38701941,182.42,182.41,0.03]
[1755572406847,10.06701941,182.42,182.41,0.03]
[1755572407242,69.57509003,182.42,182.41,0.03]
[1755572407551,73.23557986,182.42,182.41,0.03]
[1755572407739,77.30131156,182.42,182.41,0.03]
[1755572407935,15.10621557,182.4,182.39,0.03]
[1755572408137,15.10621557,182.39,182.37,0.03]
[1755572408362,48.32701941,182.38,182.37,0.03]
[1755572408557,49.03701941,182.38,182.37,0.03]
[1755572408761,10.09701941,182.38,182.37,0.03]
[1755572408952,49.03701941,182.38,182.37,0.03]
[1755572409353,69.62629233,182.38,182.37,0.03]
[1755572409551,205.98106376,182.38,182.35,0.03]
[1755572409750,24.49323498,182.36,182.35,0.03]
[1755572410170,25.20323498,182.36,182.35,0.03]
[1755572410464,20.59047574,182.34,182.33,0.03]
[1755572410666,63.45323498,182.34,182.33,0.03]
[1755572410973,64.16323498,182.34,182.33,0.03]
[1755572414165,48.32701941,182.34,182.33,0.03]
[1755572414853,49.03701941,182.34,182.33,0.03]
[1755572415055,49.01701941,182.34,182.33,0.03]